[Event "MČR v bleskovém šachu družstev 2019"]
[Site "Teplice, Czech Republic"]
[Date "2019.09.14"]
[Round "11.15"]
[White "Vrbata, Zbynek"]
[Black "Kral, David"]
[Result "1/2-1/2"]
[TimeControl "3 mim. + 2 s"]
[WhiteTitle "FM"]
[WhiteFideId "301256"]
[BlackFideId "326097"]
[WhiteElo "2324"]
[BlackElo "2028"]

1. d4 {[%emt 00:00:20]} d5 2. c4 {[%emt 00:00:02]} c6 3. Nf3 {[%emt 00:00:03]}
Bf5 {[%emt 00:00:02]} 4. e3 {[%emt 00:00:06]} e6 {[%emt 00:00:02]} 5. b3 {[%emt
00:00:02]} Nf6 {[%emt 00:00:02]} 6. Nbd2 {[%emt 00:00:04]} Bd6 {[%emt
00:00:04]} 7. Bb2 {[%emt 00:00:02]} O-O {[%emt 00:00:02]} 8. Be2 {[%emt
00:00:02]} Nbd7 {[%emt 00:00:02]} 9. O-O {[%emt 00:00:09]} Ne4 {[%emt
00:00:01]} 10. Ne5 {[%emt 00:00:15]} f6 {[%emt 00:00:04]} 11. Nxd7 {[%emt
00:00:08]} Qxd7 {[%emt 00:00:01]} 12. Nf3 {[%emt 00:00:17]} Rae8 {[%emt
00:00:04]} 13. Nh4 {[%emt 00:00:08]} Qc7 {[%emt 00:00:15]} 14. h3 {[%emt
00:00:06]} Bg6 {[%emt 00:00:11]} 15. Nxg6 {[%emt 00:00:02]} hxg6 {[%emt
00:00:02]} 16. Rc1 {[%emt 00:00:06]} f5 {[%emt 00:00:08]} 17. Bd3 {[%emt
00:00:03]} g5 {[%emt 00:00:05]} 18. Qh5 {[%emt 00:00:03]} Qf7 {[%emt 00:00:04]}
19. Qxf7+ {[%emt 00:00:04]} Kxf7 {[%emt 00:00:07]} 20. f3 {[%emt 00:00:03]} Ng3
{[%emt 00:00:03]} 21. Rfe1 {[%emt 00:00:01]} g6 {[%emt 00:00:10]} 22. a3 {[%emt
00:00:04]} Rh8 {[%emt 00:00:08]} 23. e4 {[%emt 00:00:10]} Bf4 {[%emt 00:00:05]}
24. Rc2 {[%emt 00:00:08]} g4 {[%emt 00:00:02]} 25. fxg4 {[%emt 00:00:03]} fxg4
{[%emt 00:00:03]} 26. Rf2 {[%emt 00:00:09]} g5 {[%emt 00:00:07]} 27. Bc1 {[%emt
00:00:21]} gxh3 {[%emt 00:00:01]} 28. gxh3 {[%emt 00:00:01]} dxe4 {[%emt
00:00:17]} 29. Bxf4 {[%emt 00:00:08]} gxf4 {[%emt 00:00:02]} 30. Rxf4+ {[%emt
00:00:01]} Nf5 {[%emt 00:00:03]} 31. Bxe4 {[%emt 00:00:06]} Reg8+ {[%emt
00:00:24]} 32. Kh2 {[%emt 00:00:07]} Rg5 {[%emt 00:00:04]} 33. Ref1 {[%emt
00:00:08]} Rhh5 {[%emt 00:00:03]} 34. d5 {[%emt 00:00:02]} Ke7 {[%emt
00:00:23]} 35. dxc6 {[%emt 00:00:15]} bxc6 {[%emt 00:00:03]} 36. Bxf5 exf5 37.
h4 {[%emt 00:00:03]} Kf6 {[%emt 00:00:10]} 38. Kh3 {[%emt 00:00:03]} Rg8 {[%emt
00:00:03]} 39. Rd1 {[%emt 00:00:01]} Ke6 {[%emt 00:00:06]} 40. c5 {[%emt
00:00:04]} Ke5 {[%emt 00:00:02]} 41. Rdf1 {[%emt 00:00:06]} a5 {[%emt
00:00:05]} 42. b4 {[%emt 00:00:04]} axb4 {[%emt 00:00:02]} 43. axb4 {[%emt
00:00:01]} Ra8 44. R4f3 {[%emt 00:00:08]} Ke4 {[%emt 00:00:04]} 45. R3f2 {[%emt
00:00:03]} Ra3+ {[%emt 00:00:02]} 46. Kg2 {[%emt 00:00:04]} Rxh4 {[%emt
00:00:05]} 47. Re2+ {[%emt 00:00:03]} Kd4 {[%emt 00:00:04]} 48. Rxf5 {[%emt
00:00:02]} Rg4+ {[%emt 00:00:02]} 49. Kf2 Re4 {[%emt 00:00:01]} 50. Rxe4+
{[%emt 00:00:02]} Kxe4 51. Rf6 Ra2+ {[%emt 00:00:02]} 52. Ke1 {[%emt 00:00:02]}
Rb2 {[%emt 00:00:02]} 53. Rxc6 {[%emt 00:00:03]} Rxb4 54. Rc8 Kd5 1/2-1/2

[Event "MČR v bleskovém šachu družstev 2019"]
[Site "Teplice, Czech Republic"]
[Date "2019.09.14"]
[Round "11.16"]
[White "Krutsky, Martin"]
[Black "Kuba, Jindrich"]
[Result "0-1"]
[TimeControl "3 mim. + 2 s"]
[BlackTitle "FM"]
[WhiteFideId "361526"]
[BlackFideId "318248"]
[WhiteElo "1974"]
[BlackElo "2223"]

1. e4 {[%clk 00:03:02]} {[%emt 00:00:01]} c5 {[%clk 00:03:04]} {[%emt
00:00:01]} 2. Nf3 {[%clk 00:03:03]} e6 {[%clk 00:03:05]} 3. d4 {[%clk
00:03:04]} cxd4 {[%clk 00:03:06]} 4. Nxd4 {[%clk 00:03:06]} a6 {[%clk
00:03:07]} 5. Be3 {[%clk 00:03:03]} {[%emt 00:00:05]} Qc7 {[%clk 00:03:08]}
{[%emt 00:00:01]} 6. c4 {[%clk 00:03:00]} {[%emt 00:00:05]} Nf6 {[%clk
00:03:08]} {[%emt 00:00:02]} 7. Bd3 {[%clk 00:02:52]} {[%emt 00:00:08]} Nc6
{[%clk 00:03:09]} {[%emt 00:00:03]} 8. Nxc6 {[%clk 00:02:50]} {[%emt 00:00:04]}
dxc6 {[%clk 00:03:02]} {[%emt 00:00:09]} 9. Nc3 {[%clk 00:02:49]} {[%emt
00:00:02]} e5 {[%clk 00:03:02]} {[%emt 00:00:02]} 10. O-O {[%clk 00:02:45]}
{[%emt 00:00:06]} Be7 {[%clk 00:03:00]} {[%emt 00:00:05]} 11. c5 {[%clk
00:02:37]} {[%emt 00:00:09]} O-O {[%clk 00:02:50]} {[%emt 00:00:12]} 12. Qc2
{[%clk 00:02:26]} {[%emt 00:00:13]} Ng4 {[%clk 00:02:38]} {[%emt 00:00:14]} 13.
Na4 {[%clk 00:02:09]} {[%emt 00:00:19]} Nxe3 {[%clk 00:02:32]} {[%emt
00:00:08]} 14. fxe3 {[%clk 00:02:10]} {[%emt 00:00:01]} Be6 {[%clk 00:02:32]}
{[%emt 00:00:01]} 15. Bc4 {[%clk 00:02:04]} {[%emt 00:00:09]} Bg4 {[%clk
00:02:16]} {[%emt 00:00:18]} 16. h3 {[%clk 00:01:59]} {[%emt 00:00:06]} Bh5
{[%clk 00:02:17]} {[%emt 00:00:01]} 17. g4 {[%clk 00:01:48]} {[%emt 00:00:13]}
Bg6 {[%clk 00:02:18]} 18. Rad1 {[%clk 00:01:37]} {[%emt 00:00:13]} Rad8 {[%clk
00:02:18]} {[%emt 00:00:02]} 19. b4 {[%clk 00:01:33]} {[%emt 00:00:05]} Bg5
{[%clk 00:02:10]} {[%emt 00:00:10]} 20. Kf2 {[%clk 00:01:10]} {[%emt 00:00:25]}
Qe7 {[%clk 00:02:07]} {[%emt 00:00:05]} 21. Ke2 {[%clk 00:01:08]} {[%emt
00:00:04]} h5 {[%clk 00:01:56]} {[%emt 00:00:13]} 22. Nb6 {[%clk 00:00:33]}
{[%emt 00:00:37]} hxg4 {[%clk 00:01:53]} {[%emt 00:00:04]} 23. hxg4 {[%clk
00:00:35]} Bh6 {[%clk 00:01:55]} 24. Rxd8 {[%clk 00:00:11]} {[%emt 00:00:26]}
Rxd8 {[%clk 00:01:55]} {[%emt 00:00:02]} 25. Rd1 {[%clk 00:00:09]} {[%emt
00:00:05]} Rxd1 {[%clk 00:01:38]} {[%emt 00:00:18]} 26. Qxd1 {[%clk 00:00:10]}
Bxe4 {[%clk 00:01:39]} {[%emt 00:00:01]} 27. Bd3 {[%clk 00:00:11]} {[%emt
00:00:01]} Bd5 {[%clk 00:01:29]} {[%emt 00:00:12]} 28. a3 {[%clk 00:00:09]}
{[%emt 00:00:05]} Be6 {[%clk 00:01:29]} {[%emt 00:00:02]} 29. Bf5 {[%clk
00:00:09]} {[%emt 00:00:01]} Bxf5 {[%clk 00:01:27]} {[%emt 00:00:03]} 30. gxf5
{[%clk 00:00:11]} Qg5 {[%clk 00:01:28]} 31. Qd3 {[%clk 00:00:12]} {[%emt
00:00:01]} Qg2+ {[%clk 00:01:26]} {[%emt 00:00:03]} 32. Kd1 {[%clk 00:00:13]}
e4 {[%clk 00:01:21]} {[%emt 00:00:07]} 33. Qd8+ {[%clk 00:00:11]} {[%emt
00:00:04]} Kh7 {[%clk 00:01:22]} {[%emt 00:00:01]} 34. Qd4 {[%clk 00:00:11]}
{[%emt 00:00:02]} Qf1+ {[%clk 00:01:22]} {[%emt 00:00:02]} 35. Kc2 {[%clk
00:00:12]} {[%emt 00:00:02]} Qxf5 {[%clk 00:01:22]} {[%emt 00:00:02]} 36. Nc4
{[%clk 00:00:12]} {[%emt 00:00:01]} Qe6 {[%clk 00:01:12]} {[%emt 00:00:12]} 37.
Kb2 {[%clk 00:00:12]} {[%emt 00:00:03]} g6 {[%clk 00:01:12]} {[%emt 00:00:02]}
38. Nd6 {[%clk 00:00:12]} {[%emt 00:00:02]} Bg7 {[%clk 00:01:11]} {[%emt
00:00:02]} 0-1

[Event "MČR v bleskovém šachu družstev 2019"]
[Site "Teplice, Czech Republic"]
[Date "2019.09.14"]
[Round "11.17"]
[White "Liska, Jiri"]
[Black "Sykora, Ondrej"]
[Result "1-0"]
[TimeControl "3 mim. + 2 s"]
[WhiteTitle "FM"]
[WhiteElo "2241"]
[BlackElo "2122"]

1. c4 {[%clk 00:03:02]} {[%emt 00:00:02]} e5 {[%clk 00:03:01]} {[%emt
00:00:04]} 2. g3 {[%clk 00:03:02]} {[%emt 00:00:01]} Nc6 {[%clk 00:03:02]}
{[%emt 00:00:02]} 3. Bg2 {[%clk 00:03:03]} {[%emt 00:00:01]} d6 {[%clk
00:03:03]} 4. Nc3 {[%clk 00:03:01]} {[%emt 00:00:03]} f5 {[%clk 00:03:03]}
{[%emt 00:00:02]} 5. Rb1 {[%clk 00:03:00]} {[%emt 00:00:04]} Be6 {[%clk
00:03:03]} {[%emt 00:00:02]} 6. d3 {[%clk 00:02:59]} {[%emt 00:00:02]} a5
{[%clk 00:02:58]} {[%emt 00:00:07]} 7. a3 {[%clk 00:03:00]} {[%emt 00:00:01]}
Qd7 {[%clk 00:02:40]} {[%emt 00:00:21]} 8. b4 {[%clk 00:02:59]} {[%emt
00:00:02]} axb4 {[%clk 00:02:41]} {[%emt 00:00:02]} 9. axb4 {[%clk 00:03:00]}
Nf6 {[%clk 00:02:38]} {[%emt 00:00:05]} 10. b5 {[%clk 00:02:59]} {[%emt
00:00:03]} Nd8 {[%clk 00:02:38]} {[%emt 00:00:02]} 11. Nh3 {[%clk 00:02:55]}
{[%emt 00:00:06]} Be7 {[%clk 00:02:33]} {[%emt 00:00:06]} 12. Ng5 {[%clk
00:02:55]} {[%emt 00:00:02]} Bg8 {[%clk 00:02:35]} 13. h4 {[%clk 00:02:55]}
{[%emt 00:00:03]} h6 {[%clk 00:02:36]} {[%emt 00:00:02]} 14. Nf3 {[%clk
00:02:56]} Bf7 {[%clk 00:02:32]} {[%emt 00:00:05]} 15. Bb2 {[%clk 00:02:42]}
{[%emt 00:00:15]} O-O {[%clk 00:02:31]} {[%emt 00:00:04]} 16. e3 {[%clk
00:02:39]} {[%emt 00:00:05]} c6 {[%clk 00:02:30]} {[%emt 00:00:03]} 17. d4
{[%clk 00:02:34]} {[%emt 00:00:06]} e4 {[%clk 00:02:27]} {[%emt 00:00:06]} 18.
Nd2 {[%clk 00:02:31]} {[%emt 00:00:05]} d5 {[%clk 00:02:10]} {[%emt 00:00:20]}
19. bxc6 {[%clk 00:02:26]} {[%emt 00:00:06]} bxc6 {[%clk 00:02:09]} {[%emt
00:00:03]} 20. c5 {[%clk 00:02:27]} {[%emt 00:00:01]} g5 {[%clk 00:01:39]}
{[%emt 00:00:32]} 21. hxg5 hxg5 {[%clk 00:01:41]} 22. Na4 {[%clk 00:02:21]}
{[%emt 00:00:06]} Qe6 {[%clk 00:01:30]} {[%emt 00:00:12]} 23. Nb6 {[%clk
00:02:20]} {[%emt 00:00:02]} Ra7 {[%clk 00:01:19]} {[%emt 00:00:14]} 24. Ra1
{[%clk 00:02:17]} {[%emt 00:00:05]} Rxa1 {[%clk 00:01:18]} {[%emt 00:00:04]} 25.
Qxa1 {[%clk 00:02:18]} Kg7 {[%clk 00:01:12]} {[%emt 00:00:09]} 26. Qa7 {[%clk
00:02:01]} {[%emt 00:00:18]} Re8 {[%clk 00:00:45]} {[%emt 00:00:30]} 27. Qc7
{[%clk 00:01:52]} {[%emt 00:00:09]} Kg6 {[%clk 00:00:45]} {[%emt 00:00:03]} 28.
Kd1 {[%clk 00:01:30]} {[%emt 00:00:24]} Bg8 {[%clk 00:00:42]} {[%emt 00:00:05]}
29. Kc2 {[%clk 00:01:29]} {[%emt 00:00:03]} Nf7 {[%clk 00:00:39]} {[%emt
00:00:06]} 30. Nb3 {[%clk 00:01:17]} {[%emt 00:00:14]} Bd8 {[%clk 00:00:38]}
{[%emt 00:00:03]} 31. Qb7 {[%clk 00:01:15]} {[%emt 00:00:04]} Re7 {[%clk
00:00:38]} {[%emt 00:00:02]} 32. Qa6 {[%clk 00:01:15]} {[%emt 00:00:02]} Bxb6
{[%clk 00:00:36]} {[%emt 00:00:04]} 33. Qxb6 {[%clk 00:01:08]} {[%emt
00:00:08]} Nd7 {[%clk 00:00:33]} {[%emt 00:00:05]} 34. Qa6 {[%clk 00:01:08]}
{[%emt 00:00:02]} Nd8 {[%clk 00:00:31]} {[%emt 00:00:04]} 35. Na5 {[%clk
00:01:09]} {[%emt 00:00:01]} f4 {[%clk 00:00:28]} {[%emt 00:00:05]} 36. gxf4
{[%clk 00:01:09]} {[%emt 00:00:02]} gxf4 {[%clk 00:00:30]} 37. Bh3 {[%clk
00:01:10]} Qf6 {[%clk 00:00:26]} {[%emt 00:00:05]} 38. Bc1 {[%clk 00:00:59]}
{[%emt 00:00:13]} Rh7 {[%clk 00:00:27]} {[%emt 00:00:02]} 39. Qc8 {[%clk
00:00:56]} {[%emt 00:00:04]} Be6 {[%clk 00:00:18]} {[%emt 00:00:11]} 40. Rg1+
{[%clk 00:00:52]} {[%emt 00:00:06]} Kf7 {[%clk 00:00:18]} {[%emt 00:00:03]} 41.
Bxe6+ {[%clk 00:00:48]} {[%emt 00:00:05]} Kxe6 {[%clk 00:00:19]} {[%emt
00:00:01]} 42. Nxc6 {[%clk 00:00:45]} {[%emt 00:00:05]} Nxc6 {[%clk 00:00:12]}
{[%emt 00:00:10]} 43. Qxc6+ {[%emt 00:00:02]} Ke7 44. Qxd5 {[%clk 00:00:33]}
{[%emt 00:00:12]} fxe3 {[%clk 00:00:14]} {[%emt 00:00:03]} 45. Bxe3 {[%clk
00:00:33]} {[%emt 00:00:02]} Qf3 {[%clk 00:00:14]} {[%emt 00:00:02]} 46. Qd6+
{[%clk 00:00:30]} {[%emt 00:00:05]} Ke8 {[%clk 00:00:14]} {[%emt 00:00:01]} 47.
Rg8+ {[%emt 00:00:02]} Nf8 {[%emt 00:00:01]} 48. Qb8+ {[%clk 00:00:20]} {[%emt
00:00:09]} Ke7 {[%clk 00:00:14]} {[%emt 00:00:02]} 49. Bg5+ {[%clk 00:00:18]}
{[%emt 00:00:04]} Ke6 {[%clk 00:00:12]} {[%emt 00:00:04]} 50. Qd6+ {[%clk
00:00:18]} {[%emt 00:00:02]} Kf7 {[%clk 00:00:12]} {[%emt 00:00:03]} 51. Rxf8+
{[%clk 00:00:17]} {[%emt 00:00:03]} 1-0

[Event "MČR v bleskovém šachu družstev 2019"]
[Site "Teplice, Czech Republic"]
[Date "2019.09.14"]
[Round "11.18"]
[White "Hacha, Ales"]
[Black "Vltavsky, Vladimir"]
[Result "0-1"]
[TimeControl "3 mim. + 2 s"]
[WhiteElo "2065"]
[BlackElo "2252"]

1. e4 {[%clk 00:03:02]} {[%emt 00:00:02]} c5 {[%clk 00:03:03]} {[%emt
00:00:01]} 2. Nf3 {[%clk 00:03:03]} {[%emt 00:00:01]} e6 {[%clk 00:03:05]} 3.
g3 {[%clk 00:03:03]} {[%emt 00:00:02]} d5 {[%clk 00:03:04]} {[%emt 00:00:02]} 4.
exd5 {[%clk 00:03:04]} {[%emt 00:00:01]} exd5 {[%clk 00:03:05]} {[%emt
00:00:02]} 5. Bg2 {[%clk 00:03:05]} d4 {[%clk 00:03:06]} {[%emt 00:00:02]} 6.
O-O {[%clk 00:03:06]} {[%emt 00:00:01]} Nf6 {[%clk 00:03:07]} 7. Re1+ {[%clk
00:03:06]} {[%emt 00:00:03]} Be7 {[%clk 00:03:08]} 8. d3 {[%clk 00:03:06]}
{[%emt 00:00:03]} O-O {[%clk 00:03:08]} {[%emt 00:00:02]} 9. c3 {[%clk
00:02:59]} {[%emt 00:00:08]} Nc6 {[%clk 00:03:09]} {[%emt 00:00:02]} 10. Na3
{[%clk 00:02:56]} {[%emt 00:00:05]} Bg4 {[%clk 00:03:06]} {[%emt 00:00:05]} 11.
h3 {[%clk 00:02:57]} {[%emt 00:00:01]} Bh5 {[%clk 00:03:07]} {[%emt 00:00:01]}
12. Nc4 {[%clk 00:02:24]} {[%emt 00:00:34]} b5 {[%clk 00:02:53]} {[%emt
00:00:16]} 13. Nce5 {[%clk 00:02:20]} {[%emt 00:00:07]} Nxe5 {[%clk 00:02:44]}
{[%emt 00:00:10]} 14. Rxe5 {[%clk 00:02:21]} {[%emt 00:00:02]} Rc8 {[%clk
00:02:30]} {[%emt 00:00:16]} 15. g4 {[%clk 00:02:15]} {[%emt 00:00:08]} Bg6
{[%clk 00:02:30]} {[%emt 00:00:01]} 16. cxd4 {[%clk 00:02:15]} {[%emt
00:00:02]} cxd4 {[%clk 00:02:31]} {[%emt 00:00:02]} 17. Rxb5 {[%clk 00:02:16]}
{[%emt 00:00:01]} Bd6 {[%clk 00:02:13]} {[%emt 00:00:19]} 18. Bg5 {[%clk
00:02:15]} {[%emt 00:00:03]} h6 {[%clk 00:02:11]} {[%emt 00:00:05]} 19. Bh4
{[%clk 00:02:16]} Qd7 {[%clk 00:01:51]} {[%emt 00:00:12]} 20. Qb3 {[%clk
00:02:12]} {[%emt 00:00:17]} Rb8 {[%clk 00:01:46]} {[%emt 00:00:07]} 21. a4
{[%clk 00:02:02]} {[%emt 00:00:11]} a6 {[%clk 00:01:43]} {[%emt 00:00:05]} 22.
Rxb8 {[%clk 00:01:57]} {[%emt 00:00:07]} Rxb8 {[%clk 00:01:44]} 23. Qc4 {[%clk
00:01:58]} {[%emt 00:00:01]} Rxb2 {[%clk 00:01:43]} {[%emt 00:00:03]} 24. Nxd4
{[%clk 00:01:57]} {[%emt 00:00:04]} Be5 {[%clk 00:01:36]} {[%emt 00:00:09]} 25.
Nc6 {[%clk 00:01:48]} {[%emt 00:00:11]} Bxd3 {[%clk 00:01:19]} {[%emt
00:00:19]} 26. Nxe5 {[%clk 00:01:48]} {[%emt 00:00:02]} Bxc4 {[%clk 00:01:20]}
{[%emt 00:00:01]} 27. Nxd7 {[%clk 00:01:48]} {[%emt 00:00:02]} Nxd7 {[%clk
00:01:20]} {[%emt 00:00:02]} 28. Rd1 {[%clk 00:01:39]} {[%emt 00:00:11]} Be6
{[%clk 00:01:17]} {[%emt 00:00:05]} 29. Bd5 {[%clk 00:01:31]} {[%emt 00:00:09]}
Bxd5 {[%clk 00:01:15]} {[%emt 00:00:04]} 30. Rxd5 {[%clk 00:01:33]} Rb7 {[%clk
00:01:13]} {[%emt 00:00:04]} 31. Kg2 {[%clk 00:01:32]} {[%emt 00:00:03]} Nb6
{[%clk 00:01:11]} {[%emt 00:00:03]} 32. Rd4 {[%clk 00:01:29]} {[%emt 00:00:05]}
Rd7 {[%clk 00:01:09]} {[%emt 00:00:05]} 33. Rxd7 {[%clk 00:01:24]} Nxd7 {[%clk
00:01:10]} 34. Be7 {[%clk 00:01:23]} {[%emt 00:00:02]} f6 {[%clk 00:01:10]}
{[%emt 00:00:03]} 35. Kf3 {[%clk 00:01:23]} {[%emt 00:00:02]} Kf7 {[%emt
00:00:02]} 36. Ke4 {[%clk 00:01:22]} Kxe7 {[%clk 00:01:12]} {[%emt 00:00:02]}
0-1

[Event "MČR v bleskovém šachu družstev 2019"]
[Site "Teplice, Czech Republic"]
[Date "2019.09.14"]
[Round "11.19"]
[White "Zima, Jan"]
[Black "Marsalek, Zdenek"]
[Result "1-0"]
[TimeControl "3 mim. + 2 s"]
[WhiteElo "2048"]
[BlackElo "2272"]

1. d4 {[%clk 00:03:04]} {[%emt 00:09:40]} Nf6 {[%clk 00:03:03]} {[%emt
00:00:01]} 2. Nf3 {[%clk 00:03:04]} g6 {[%clk 00:03:04]} {[%emt 00:00:01]} 3.
g3 {[%clk 00:03:06]} Bg7 {[%clk 00:03:05]} {[%emt 00:00:02]} 4. Bg2 {[%clk
00:03:07]} O-O {[%clk 00:03:05]} {[%emt 00:00:02]} 5. O-O {[%clk 00:03:08]}
{[%emt 00:00:01]} d5 {[%clk 00:03:06]} {[%emt 00:00:01]} 6. c4 {[%clk
00:03:09]} dxc4 {[%clk 00:03:07]} {[%emt 00:00:02]} 7. Na3 {[%clk 00:03:10]}
{[%emt 00:00:01]} c3 {[%clk 00:03:08]} 8. bxc3 {[%clk 00:03:11]} c5 {[%clk
00:03:09]} 9. Nc4 {[%clk 00:03:10]} {[%emt 00:00:03]} Nc6 {[%clk 00:03:03]}
{[%emt 00:00:08]} 10. e3 {[%clk 00:03:10]} {[%emt 00:00:02]} Bg4 {[%clk
00:02:41]} {[%emt 00:00:24]} 11. h3 {[%clk 00:02:59]} {[%emt 00:00:12]} Be6
{[%clk 00:02:35]} {[%emt 00:00:08]} 12. Qe2 {[%clk 00:02:55]} {[%emt 00:00:07]}
Rc8 {[%clk 00:02:24]} {[%emt 00:00:13]} 13. Nfd2 {[%clk 00:02:53]} {[%emt
00:00:03]} b5 {[%clk 00:02:10]} {[%emt 00:00:17]} 14. Na3 {[%clk 00:02:27]}
{[%emt 00:00:27]} a6 {[%clk 00:01:54]} {[%emt 00:00:19]} 15. Bb2 {[%clk
00:02:27]} {[%emt 00:00:01]} Qb6 {[%clk 00:01:42]} {[%emt 00:00:14]} 16. Rfc1
{[%clk 00:02:18]} {[%emt 00:00:10]} Rfd8 {[%clk 00:01:33]} {[%emt 00:00:12]} 17.
Nb3 {[%clk 00:02:10]} {[%emt 00:00:10]} cxd4 {[%clk 00:01:34]} {[%emt
00:00:02]} 18. cxd4 {[%clk 00:02:08]} {[%emt 00:00:04]} Bd5 {[%clk 00:01:24]}
{[%emt 00:00:12]} 19. f3 {[%clk 00:01:44]} {[%emt 00:00:26]} b4 {[%clk
00:01:15]} {[%emt 00:00:11]} 20. Nc4 {[%clk 00:01:41]} {[%emt 00:00:04]} Qb5
{[%clk 00:01:15]} {[%emt 00:00:03]} 21. Nc5 {[%clk 00:01:30]} {[%emt 00:00:13]}
Nd7 {[%clk 00:00:42]} {[%emt 00:00:34]} 22. Nxd7 {[%clk 00:01:22]} {[%emt
00:00:10]} Rxd7 {[%clk 00:00:44]} {[%emt 00:00:01]} 23. Bf1 {[%clk 00:01:22]}
{[%emt 00:00:02]} Qb7 {[%clk 00:00:38]} {[%emt 00:00:08]} 24. Kg2 {[%clk
00:01:09]} {[%emt 00:00:14]} h5 {[%clk 00:00:38]} {[%emt 00:00:02]} 25. h4
{[%clk 00:01:09]} {[%emt 00:00:02]} f5 {[%clk 00:00:24]} {[%emt 00:00:16]} 26.
Rc2 {[%clk 00:01:07]} {[%emt 00:00:04]} Rdc7 {[%clk 00:00:12]} {[%emt
00:00:15]} 27. Rac1 {[%clk 00:01:07]} {[%emt 00:00:01]} a5 {[%clk 00:00:13]} 28.
a3 {[%clk 00:00:39]} {[%emt 00:00:30]} Kf8 {[%clk 00:00:09]} {[%emt 00:00:07]}
29. Kf2 {[%clk 00:00:30]} {[%emt 00:00:11]} Bf6 {[%clk 00:00:09]} {[%emt
00:00:02]} 30. Qd2 {[%clk 00:00:19]} {[%emt 00:00:12]} b3 {[%clk 00:00:06]}
{[%emt 00:00:06]} 31. Rc3 {[%clk 00:00:18]} {[%emt 00:00:03]} a4 {[%clk
00:00:07]} 32. Be2 {[%clk 00:00:18]} {[%emt 00:00:03]} Kf7 {[%clk 00:00:07]}
{[%emt 00:00:02]} 33. Qd3 {[%clk 00:00:17]} {[%emt 00:00:02]} Qb8 {[%clk
00:00:07]} {[%emt 00:00:03]} 34. Ne5+ {[%clk 00:00:11]} {[%emt 00:00:07]} Nxe5
{[%clk 00:00:06]} {[%emt 00:00:03]} 35. dxe5 {[%clk 00:00:12]} {[%emt
00:00:02]} Rxc3 {[%clk 00:00:04]} {[%emt 00:00:04]} 36. Rxc3 {[%clk 00:00:10]}
{[%emt 00:00:03]} 1-0

[Event "MČR v bleskovém šachu družstev 2019"]
[Site "Teplice, Czech Republic"]
[Date "2019.09.14"]
[Round "11.20"]
[White "Broucek, Tomas"]
[Black "Duran, Tomas"]
[Result "0-1"]
[TimeControl "3 mim. + 2 s"]
[WhiteElo "2044"]
[BlackElo "2135"]

1. d4 {[%emt 00:04:08]} g6 {[%clk 00:03:03]} 2. Nf3 {[%clk 00:03:02]} {[%emt
00:00:02]} Bg7 {[%clk 00:03:04]} 3. e4 {[%emt 00:00:03]} d6 {[%clk 00:03:04]} 4.
Bd3 {[%clk 00:03:01]} {[%emt 00:00:03]} Nf6 {[%clk 00:03:05]} {[%emt 00:00:01]}
5. O-O {[%clk 00:03:01]} {[%emt 00:00:03]} O-O {[%clk 00:03:06]} {[%emt
00:00:01]} 6. c3 {[%clk 00:02:57]} {[%emt 00:00:06]} c6 {[%clk 00:03:06]}
{[%emt 00:00:01]} 7. Bg5 {[%clk 00:02:58]} {[%emt 00:00:02]} Qc7 {[%clk
00:03:06]} {[%emt 00:00:02]} 8. h3 {[%clk 00:02:42]} {[%emt 00:00:18]} e5
{[%clk 00:03:04]} {[%emt 00:00:04]} 9. dxe5 {[%clk 00:02:11]} {[%emt 00:00:32]}
dxe5 {[%clk 00:03:04]} {[%emt 00:00:02]} 10. Qc1 {[%clk 00:02:05]} {[%emt
00:00:08]} Be6 {[%clk 00:02:54]} {[%emt 00:00:13]} 11. Bh6 {[%clk 00:01:54]}
{[%emt 00:00:13]} Rd8 {[%clk 00:02:54]} {[%emt 00:00:01]} 12. Bxg7 {[%clk
00:01:46]} {[%emt 00:00:11]} Kxg7 {[%clk 00:02:54]} {[%emt 00:00:01]} 13. Bc2
{[%clk 00:01:47]} h6 {[%clk 00:02:53]} {[%emt 00:00:04]} 14. Qe3 {[%clk
00:01:40]} {[%emt 00:00:08]} Qb6 {[%clk 00:02:45]} {[%emt 00:00:11]} 15. Qxb6
{[%clk 00:01:18]} {[%emt 00:00:23]} axb6 {[%clk 00:02:46]} {[%emt 00:00:01]} 16.
Na3 {[%clk 00:01:18]} {[%emt 00:00:03]} Nbd7 {[%clk 00:02:46]} {[%emt
00:00:02]} 17. Rfd1 {[%clk 00:01:17]} {[%emt 00:00:03]} b5 {[%clk 00:02:29]}
{[%emt 00:00:19]} 18. Rd2 {[%clk 00:00:57]} {[%emt 00:00:22]} Kf8 {[%clk
00:02:30]} {[%emt 00:00:01]} 19. Rad1 {[%clk 00:00:58]} Ke7 {[%clk 00:02:31]}
{[%emt 00:00:01]} 20. Ne1 {[%clk 00:00:38]} {[%emt 00:00:21]} Nc5 {[%clk
00:02:20]} {[%emt 00:00:13]} 0-1